bitfinex/quotes_BTCUSD_20250406
["timestamp","ask_amount","ask_price","bid_price","bid_amount"]
[1743927994911,0.36215109,82811.0,82810.0,0.43285887]
[1743928008268,0.36215109,82811.0,82810.0,0.28439802]
[1743928008269,0.4544129,82811.0,82810.0,0.28439802]
[1743928008479,0.36715109,82811.0,82810.0,0.28439802]
[1743928009306,0.36715109,82811.0,82810.0,0.28139802]
[1743928009544,0.36715109,82811.0,82810.0,0.28439802]
[1743928009768,0.36715109,82811.0,82810.0,0.28139802]
[1743928010180,0.36715109,82811.0,82810.0,0.27939802]
[1743928015574,0.46345109,82811.0,82810.0,0.27939802]
[1743928015812,0.46345109,82811.0,82791.0,0.652]
[1743928015813,0.352077,82802.0,82791.0,0.652]
[1743928016024,0.36182289,82802.0,82801.0,0.12690297]
[1743928017587,0.02182289,82802.0,82801.0,0.004]
[1743928017827,0.02682289,82802.0,82801.0,0.004]
[1743928018032,0.04926175,82802.0,82801.0,0.004]
[1743928020349,0.526157,82801.0,82800.0,1.5e-07]
[1743928020791,0.55834175,82801.0,82800.0,1.5e-07]
[1743928021214,0.56719916,82801.0,82800.0,1.5e-07]
[1743928023993,0.5447603,82801.0,82800.0,1.5e-07]
[1743928025959,0.5447603,82801.0,82800.0,0.12290312]
[1743928030403,0.5447603,82801.0,82800.0,1.5e-07]
[1743928032218,0.5447603,82801.0,82800.0,0.00016525]
[1743928032620,0.5450905,82801.0,82800.0,0.00016525]
[1743928036029,0.8050905,82801.0,82800.0,0.00016525]
[1743928036239,0.5450905,82801.0,82800.0,0.00016525]
[1743928038931,0.5450905,82801.0,82784.0,0.0001649]
[1743928038932,0.012079,82785.0,82784.0,0.0001649]
[1743928039137,0.012079,82785.0,82776.0,0.0001649]
[1743928039138,0.01208,82778.0,82776.0,0.0001649]
[1743928039344,0.53095289,82778.0,82777.0,0.12376787]
[1743928040296,0.53140934,82778.0,82777.0,0.12376787]
[1743928041149,0.54352313,82778.0,82777.0,0.12376787]
[1743928042673,0.54352313,82778.0,82777.0,0.13830872]
[1743928042887,0.54352313,82778.0,82777.0,0.18530872]
[1743928045366,0.54352313,82778.0,82777.0,0.17076787]
[1743928045536,0.54352313,82778.0,82777.0,0.26496787]
[1743928054341,0.54352313,82778.0,82777.0,0.12376787]
[1743928060294,0.62415408,82778.0,82777.0,0.0008649]
[1743928060510,0.36682589,82777.0,82776.0,8e-07]
[1743928061058,0.38923063,82777.0,82776.0,8e-07]
[1743928061505,0.02182689,82772.0,82771.0,0.0041257]
[1743928061721,0.53096589,82772.0,82771.0,0.0041257]
[1743928062063,0.55337063,82772.0,82771.0,0.0041257]
[1743928062816,0.56457335,82772.0,82771.0,0.0041257]
[1743928063226,0.56957335,82772.0,82771.0,0.0041257]
[1743928063842,0.57057335,82772.0,82771.0,0.0041257]
[1743928064021,0.56957335,82772.0,82771.0,0.0041257]
[1743928064463,0.57057335,82772.0,82771.0,0.0041257]
[1743928064915,0.57157335,82772.0,82771.0,0.0041257]
[1743928065088,0.57257335,82772.0,82771.0,0.0041257]
[1743928066037,0.56137063,82772.0,82771.0,0.0041257]
[1743928071569,0.80170103,82772.0,82771.0,0.0041257]
[1743928071786,0.56170103,82772.0,82771.0,0.0041257]
[1743928075299,0.57291826,82772.0,82771.0,0.0041257]
[1743928079992,0.56170103,82772.0,82771.0,0.0041257]
[1743928082106,0.53929629,82772.0,82771.0,0.0041257]
[1743928091126,0.61055644,82772.0,82771.0,0.0041257]
[1743928091945,0.53598889,82761.0,82760.0,7.4e-07]
[1743928092158,0.53599789,82757.0,82756.0,0.28693569]
[1743928092986,0.55843438,82757.0,82756.0,0.28693569]
[1743928094245,0.65623438,82757.0,82756.0,0.28693569]
[1743928094443,0.6674466,82757.0,82756.0,0.28693569]
[1743928095564,0.65723438,82757.0,82756.0,0.28693569]
[1743928096107,0.60923438,82757.0,82756.0,0.28693569]
[1743928096756,0.60923438,82757.0,82756.0,0.28710089]
[1743928097167,0.56043438,82757.0,82756.0,0.28710089]
[1743928097346,0.53799789,82757.0,82756.0,0.28710089]
[1743928098775,0.53799789,82757.0,82756.0,8.9e-07]
[1743928102242,0.53799789,82757.0,82750.0,8.9e-07]
[1743928102243,0.53601189,82751.0,82750.0,8.9e-07]
[1743928102713,0.58301189,82751.0,82750.0,8.9e-07]
[1743928102950,0.53603089,82742.0,82741.0,1e-06]
[1743928103367,0.54722551,82742.0,82741.0,1e-06]
[1743928103592,0.5790183,82742.0,82741.0,1e-06]
[1743928104516,0.5810183,82742.0,82741.0,1e-06]
[1743928104748,0.5790183,82742.0,82741.0,1e-06]
[1743928105229,0.5820183,82742.0,82741.0,1e-06]
[1743928105456,0.5850183,82742.0,82741.0,1e-06]
[1743928109154,0.5850183,82742.0,82741.0,2e-07]
[1743928114770,0.5850183,82742.0,82734.0,0.02]
[1743928114771,0.5213,82735.0,82734.0,0.0199602]
[1743928115081,0.55342667,82735.0,82734.0,0.0199602]
[1743928116585,0.57357162,82735.0,82734.0,0.0199602]
[1743928116772,0.57457162,82735.0,82734.0,0.0199602]
[1743928117497,0.57557162,82735.0,82734.0,0.0199602]
[1743928117882,0.58057162,82735.0,82734.0,0.0199602]
[1743928121664,0.58952778,82735.0,82734.0,0.0199602]
[1743928123802,0.58952778,82735.0,82734.0,0.0201255]
[1743928128045,0.36183189,82734.0,82720.0,0.19732]
[1743928128251,0.36683189,82734.0,82733.0,0.02274147]
[1743928128431,0.39816883,82734.0,82733.0,0.02274147]
[1743928129231,0.40934503,82734.0,82733.0,0.02274147]
[1743928129847,0.41034503,82734.0,82733.0,0.02274147]
[1743928130133,0.41134503,82734.0,82733.0,0.02274147]
[1743928133889,0.41134503,82734.0,82733.0,0.00847876]
[1743928134298,0.41134503,82734.0,82718.0,0.000165]
[1743928134299,0.01474589,82724.0,82723.0,0.01225291]
[1743928134539,0.52398289,82724.0,82723.0,0.01225291]
[1743928134740,0.54636367,82724.0,82723.0,0.01225291]
[1743928134957,0.57858403,82724.0,82723.0,0.01225291]
[1743928136135,0.59041246,82724.0,82723.0,0.01225291]
[1743928136540,0.59241246,82724.0,82723.0,0.01225291]
[1743928136959,0.59441246,82724.0,82723.0,0.01225291]
[1743928138996,0.59441246,82724.0,82723.0,0.01241821]
[1743928140666,0.53108189,82719.0,82718.0,0.000165]
[1743928141053,0.54003805,82719.0,82718.0,0.000165]
[1743928141227,0.55121425,82719.0,82718.0,0.000165]
[1743928141669,0.57359503,82719.0,82718.0,0.000165]
[1743928142642,0.57459503,82719.0,82718.0,0.000165]
[1743928143317,0.57559503,82719.0,82718.0,0.000165]
[1743928143771,0.58059503,82719.0,82718.0,0.000165]
[1743928149587,0.53609789,82712.0,82708.0,0.045]
[1743928149852,0.53110389,82709.0,82708.0,0.045]
[1743928150217,0.55348467,82709.0,82708.0,0.045]
[1743928150419,0.56466087,82709.0,82708.0,0.045]
[1743928150778,0.56466087,82709.0,82705.0,0.03]
[1743928150779,0.35474589,82706.0,82705.0,0.03]
[1743928150998,0.36683689,82706.0,82705.0,0.03]
[1743928151201,0.38921767,82706.0,82705.0,0.03]
[1743928151413,0.39817971,82706.0,82705.0,0.03]
[1743928151589,0.40935591,82706.0,82705.0,0.03]
[1743928152571,0.05817971,82706.0,82705.0,0.03]
[1743928153485,0.06017971,82706.0,82705.0,0.03]
[1743928153708,0.06117971,82706.0,82705.0,0.03]
[1743928153887,0.06117971,82706.0,82705.0,0.0301653]
[1743928154187,0.06317971,82706.0,82705.0,0.0301653]
[1743928155354,0.05421767,82706.0,82705.0,0.0301653]
[1743928156838,0.03183689,82706.0,82705.0,0.0301653]
[1743928157498,0.012091,82702.0,82701.0,4e-05]
[1743928157780,0.521373,82702.0,82701.0,4e-05]
[1743928158208,0.53111889,82702.0,82701.0,4e-05]
[1743928158846,0.53311889,82702.0,82701.0,4e-05]
[1743928160194,0.53411889,82702.0,82701.0,4e-05]
[1743928162287,0.53911889,82702.0,82701.0,4e-05]
[1743928167639,0.53911889,82702.0,82701.0,0.0002053]
[1743928173329,0.53911889,82702.0,82701.0,0.0452053]
[1743928179398,0.53911889,82702.0,82701.0,0.16810827]
[1743928179860,0.53811889,82702.0,82701.0,0.16810827]
[1743928180074,0.53911889,82702.0,82701.0,0.16810827]
[1743928180310,0.53711889,82702.0,82701.0,0.16810827]
[1743928180531,0.522373,82702.0,82701.0,0.16810827]
[1743928180749,0.002,82702.0,82701.0,0.22589927]
[1743928180970,0.002,82702.0,82701.0,0.39518327]
[1743928181216,0.002,82702.0,82701.0,0.39990258]
[1743928181422,0.0003306,82706.0,82705.0,0.0907]
[1743928181651,0.0003306,82706.0,82705.0,0.39373279]
[1743928181875,0.0003306,82706.0,82705.0,0.39131482]
[1743928182107,0.0003306,82706.0,82705.0,0.54602476]
[1743928182333,0.19348503,82724.0,82723.0,0.012088]
[1743928182334,0.01215903,82724.0,82723.0,0.012088]
[1743928182579,0.0003306,82724.0,82723.0,0.34557182]
[1743928182820,0.0003306,82724.0,82723.0,0.35015529]
[1743928183061,0.0003306,82735.0,82734.0,0.045]
[1743928183275,0.0003306,82735.0,82734.0,0.18244382]
[1743928183483,0.0003306,82735.0,82734.0,0.18702348]
[1743928183898,0.5095446,82735.0,82734.0,0.18702348]
[1743928184304,0.5095446,82735.0,82734.0,0.18708378]
[1743928185373,0.5216306,82735.0,82734.0,0.18708378]
[1743928187788,0.5216306,82735.0,82734.0,0.18250412]
[1743928190163,0.5216306,82735.0,82734.0,0.18350412]
[1743928190387,0.5216306,82735.0,82734.0,0.18450412]
[1743928190601,0.3524166,82735.0,82734.0,0.18450412]
[1743928191411,0.3524166,82735.0,82734.0,0.18250412]
[1743928191820,0.3524166,82735.0,82734.0,0.18850412]
[1743928192242,0.3524166,82735.0,82734.0,0.18550412]
[1743928192449,0.3403306,82735.0,82734.0,0.18550412]
[1743928192665,0.3403306,82735.0,82734.0,0.19759012]
[1743928192877,0.0003306,82735.0,82734.0,0.19759012]
[1743928193087,0.0003306,82735.0,82734.0,0.19459012]
[1743928193305,0.0003306,82735.0,82734.0,0.18550412]
[1743928193732,0.0003306,82735.0,82734.0,0.18850412]
[1743928194164,0.0003306,82735.0,82734.0,0.18250412]
[1743928194652,0.0003306,82735.0,82734.0,0.18850412]
[1743928195370,0.0003306,82735.0,82734.0,0.23540412]
[1743928196022,0.2803306,82735.0,82734.0,0.23540412]
[1743928196236,0.0003306,82735.0,82734.0,0.23540412]
[1743928200228,0.0003306,82735.0,82734.0,0.88800412]
[1743928200955,0.1695446,82735.0,82734.0,0.88800412]
[1743928201825,0.1816306,82735.0,82734.0,0.94462412]
[1743928203257,0.0003306,82735.0,82734.0,0.94462412]
[1743928203480,0.0124166,82735.0,82734.0,0.94462412]
[1743928204365,0.0003306,82735.0,82734.0,0.94462412]
[1743928204567,0.0124166,82735.0,82734.0,0.94462412]
[1743928204971,0.0003306,82735.0,82734.0,0.94462412]
[1743928205180,0.0003306,82735.0,82734.0,0.95671012]
[1743928205600,0.0003306,82735.0,82734.0,1.00221012]
[1743928206672,0.0003306,82735.0,82734.0,0.99921012]
[1743928207055,0.0003306,82735.0,82734.0,1.00321012]
[1743928207480,0.0003306,82735.0,82734.0,1.00021012]
[1743928207676,0.0003306,82735.0,82734.0,1.00421012]
[1743928209344,0.2503306,82735.0,82734.0,1.00421012]
[1743928209586,0.0003306,82735.0,82734.0,1.00421012]
[1743928211340,0.0003306,82735.0,82734.0,0.99212412]
[1743928218578,0.0124166,82735.0,82734.0,0.99212412]
[1743928219936,0.0124166,82735.0,82734.0,0.79810412]
[1743928220133,0.0124166,82735.0,82734.0,0.94510412]
[1743928221984,0.169214,82736.0,82735.0,0.05212425]
[1743928222204,0.169214,82736.0,82735.0,0.17502722]
[1743928222832,0.5213,82736.0,82735.0,0.16048637]
[1743928223033,0.53104589,82736.0,82735.0,0.16048637]
[1743928223243,0.53104589,82736.0,82735.0,0.30736637]
[1743928223454,0.53104589,82736.0,82735.0,0.31536637]
[1743928224066,0.53104589,82736.0,82735.0,0.31136637]
[1743928224280,0.53104589,82736.0,82735.0,0.31536637]
[1743928224916,0.53104589,82736.0,82735.0,0.31136637]
[1743928225121,0.53104589,82736.0,82735.0,0.30736637]
[1743928225344,0.53604589,82736.0,82735.0,0.30732637]
[1743928225553,0.53604589,82736.0,82735.0,0.31032637]
[1743928226225,0.53604589,82736.0,82735.0,0.31232637]
[1743928226418,0.53604589,82736.0,82735.0,0.30932637]
[1743928226838,0.53604589,82736.0,82735.0,0.31132637]
[1743928227925,0.53604589,82736.0,82735.0,0.0415834]
[1743928229208,0.53604589,82736.0,82735.0,0.0395834]
[1743928229778,0.53604589,82736.0,82735.0,0.0375834]
[1743928230169,0.53604589,82736.0,82735.0,0.0385834]
[1743928230378,0.53604589,82736.0,82735.0,0.0395834]
[1743928233300,0.53637649,82736.0,82735.0,0.0395834]
[1743928242658,0.53137649,82736.0,82735.0,0.16248637]
[1743928243702,0.53637649,82736.0,82735.0,0.16248637]
[1743928244121,0.53625949,82736.0,82735.0,0.30760637]
[1743928244690,0.53625949,82736.0,82735.0,0.30752637]
[1743928247085,0.53625949,82736.0,82735.0,0.30769167]
[1743928249731,0.53625949,82736.0,82735.0,0.1452053]
[1743928256584,0.53625949,82736.0,82735.0,0.0001653]
[1743928256804,0.53625949,82736.0,82735.0,0.1444053]
[1743928258370,0.5265136,82736.0,82735.0,0.1444053]
[1743928258597,0.53625949,82736.0,82735.0,0.1444053]
[1743928258802,0.53125949,82736.0,82735.0,0.26730827]
[1743928259495,0.5215136,82736.0,82735.0,0.26730827]
[1743928259723,0.53125949,82736.0,82735.0,0.26730827]
[1743928259841,0.5215136,82736.0,82735.0,0.26730827]
[1743928260462,0.53125949,82736.0,82735.0,0.26730827]
[1743928267966,0.53125949,82736.0,82735.0,0.26730827]
[1743928270968,0.5215136,82736.0,82735.0,0.26730827]
[1743928271168,0.53125949,82736.0,82735.0,0.26730827]
[1743928271485,0.53125949,82736.0,82735.0,0.26686827]
[1743928272866,0.5215136,82736.0,82735.0,0.26686827]
[1743928273015,0.53125949,82736.0,82735.0,0.26686827]
[1743928281352,0.78125949,82736.0,82735.0,0.26686827]
[1743928281552,0.53125949,82736.0,82735.0,0.26686827]
[1743928282043,0.53125949,82736.0,82735.0,0.28140912]
[1743928282247,0.1815136,82736.0,82735.0,0.32880912]
[1743928283064,0.5215136,82736.0,82735.0,0.32880912]
[1743928283417,0.5215136,82736.0,82735.0,0.32980912]
[1743928284730,0.5215136,82736.0,82735.0,0.33080912]
[1743928287655,0.5215136,82736.0,82735.0,0.32980912]
[1743928288615,0.5215136,82736.0,82735.0,0.33180912]
[1743928288733,0.5215136,82736.0,82735.0,0.33080912]
[1743928289767,0.5215136,82736.0,82735.0,0.33280912]
[1743928292997,0.0003306,82736.0,82735.0,0.54762312]
[1743928293207,0.0003306,82736.0,82735.0,0.55970912]
[1743928293729,0.0003306,82736.0,82735.0,0.55770912]
[1743928294340,0.0003306,82736.0,82735.0,0.56170912]
[1743928294674,0.0003306,82736.0,82735.0,0.55770912]
[1743928295061,0.0003306,82736.0,82735.0,0.56270912]
[1743928295717,0.0003306,82736.0,82735.0,0.56070912]
[1743928296095,0.0003306,82736.0,82735.0,0.56470912]
[1743928298133,0.0003306,82736.0,82735.0,0.60207833]
[1743928298342,0.0003306,82736.0,82735.0,0.56470912]
[1743928299317,0.0003306,82736.0,82735.0,0.61732393]
[1743928299735,0.0003306,82736.0,82735.0,0.62915316]
[1743928300053,0.0003306,82736.0,82735.0,0.61732393]
[1743928300260,0.0003306,82736.0,82735.0,0.57996323]
[1743928300461,0.0003306,82736.0,82735.0,0.56470912]
[1743928300889,0.0003306,82736.0,82735.0,0.57996323]
[1743928301082,0.0003306,82736.0,82735.0,0.56470912]
[1743928301313,0.0003306,82736.0,82735.0,0.57996323]
[1743928302465,0.0003306,82736.0,82735.0,0.56470912]
[1743928302915,0.0003306,82736.0,82735.0,0.57996323]
[1743928304927,0.0003306,82736.0,82735.0,0.43616323]
[1743928305150,0.0003306,82736.0,82735.0,0.57848323]
[1743928307665,0.0003306,82736.0,82735.0,0.56322912]
[1743928309050,0.0003306,82736.0,82735.0,0.57848323]
[1743928309970,0.0003306,82736.0,82735.0,1.23088323]
[1743928317851,0.0003306,82736.0,82735.0,1.26822733]
[1743928322273,0.0003306,82736.0,82735.0,1.26732536]
[1743928322945,0.0003306,82736.0,82735.0,1.2664234]
[1743928323635,0.0003306,82736.0,82735.0,1.26552144]
[1743928323781,0.0003306,82736.0,82735.0,1.26568674]
[1743928324210,0.0003306,82736.0,82735.0,1.26478454]
[1743928326465,0.0003306,82736.0,82735.0,1.12246454]
[1743928326641,0.0003306,82736.0,82735.0,1.26422454]
[1743928330965,0.0003306,82736.0,82735.0,1.39940369]
[1743928331224,0.0003306,82736.0,82735.0,1.35380369]
[1743928331713,0.0003306,82736.0,82735.0,1.36834454]
[1743928333568,0.0003306,82736.0,82735.0,1.22686454]
[1743928333773,0.0003306,82736.0,82735.0,1.36822454]
[1743928339195,0.0003306,82736.0,82735.0,1.32082454]
[1743928341679,0.0003306,82736.0,82735.0,1.31682454]
[1743928342261,0.0003306,82736.0,82735.0,1.31782454]
[1743928342564,0.0003306,82736.0,82735.0,1.32382454]
[1743928343218,0.0003306,82736.0,82735.0,1.11200958]
[1743928343509,0.0003306,82736.0,82735.0,1.10129233]
[1743928343747,0.0003306,82736.0,82735.0,0.94856633]
[1743928343942,0.0498306,82736.0,82735.0,1.07716633]
[1743928344167,0.0498306,82736.0,82735.0,1.08316633]
[1743928344347,0.0498306,82736.0,82735.0,1.08916633]
[1743928344546,0.0498306,82736.0,82735.0,1.08316633]
[1743928344759,0.0498306,82736.0,82735.0,1.08816633]
[1743928345565,0.0619166,82736.0,82735.0,0.94156633]
[1743928345719,0.0619166,82736.0,82735.0,0.93204633]
[1743928345938,0.0619166,82736.0,82735.0,1.08804633]
[1743928352164,0.4019166,82736.0,82735.0,0.79756633]
[1743928352389,0.46116249,82736.0,82735.0,0.93776633]
[1743928352792,0.46116249,82736.0,82735.0,0.92322548]
[1743928353728,0.46116249,82736.0,82735.0,0.91722548]
[1743928354292,0.46116249,82736.0,82735.0,0.91222548]
[1743928354732,0.46116249,82736.0,82735.0,0.77502548]
[1743928354926,0.46116249,82736.0,82735.0,0.91910548]
[1743928355173,0.0498306,82736.0,82735.0,0.93364633]
[1743928355356,0.0498306,82736.0,82735.0,0.93564633]
[1743928355357,0.0003306,82736.0,82735.0,0.93564633]
[1743928355942,0.0003306,82736.0,82735.0,0.93164633]
[1743928356312,0.0003306,82736.0,82735.0,0.93464633]
[1743928356867,0.0003306,82736.0,82735.0,0.93164633]
[1743928357967,0.0003306,82736.0,82735.0,0.92664633]
[1743928358177,0.0003306,82736.0,82735.0,1.11194633]
[1743928358381,0.0003306,82736.0,82735.0,1.11594633]
[1743928358581,0.0003306,82736.0,82735.0,0.93064633]
[1743928358782,0.0003306,82736.0,82735.0,0.92664633]
[1743928358985,0.0003306,82736.0,82735.0,0.93064633]
[1743928359202,0.0003306,82736.0,82735.0,0.93564633]
[1743928364900,0.0003306,82736.0,82735.0,0.79556633]
[1743928365100,0.0003306,82736.0,82735.0,0.93532633]
[1743928365461,0.0003306,82736.0,82735.0,1.10454033]
[1743928366472,0.0003306,82736.0,82735.0,1.09954033]
[1743928366791,0.0003306,82736.0,82735.0,0.93532633]
[1743928367130,0.0003306,82736.0,82735.0,0.93132633]
[1743928367339,0.0003306,82736.0,82735.0,0.93632633]
[1743928369960,0.0003306,82736.0,82735.0,0.94841233]
[1743928370185,0.0003306,82736.0,82735.0,1.04451233]
[1743928370969,0.0003306,82736.0,82735.0,1.08186619]
[1743928371176,0.0003306,82736.0,82735.0,1.07686619]
[1743928371535,0.0003306,82736.0,82735.0,1.08286619]
[1743928372707,0.0003306,82736.0,82735.0,1.07786619]
[1743928372931,0.01007629,82757.0,82741.0,0.331287]
[1743928372932,0.0003304,82757.0,82741.0,0.331287]
[1743928373136,0.0003304,82757.0,82741.0,0.61743879]
[1743928374359,0.0003304,82757.0,82741.0,0.62643879]
[1743928374960,0.0003304,82757.0,82741.0,0.63243879]
[1743928375570,0.0003304,82757.0,82741.0,0.62743879]
[1743928375773,0.0003304,82757.0,82741.0,0.63343879]
[1743928376650,0.0003304,82757.0,82741.0,0.61818468]
[1743928377278,0.0003304,82757.0,82741.0,0.63343879]
[1743928377486,0.0003304,82757.0,82741.0,0.46818468]
[1743928377721,0.0003304,82757.0,82741.0,0.48343879]
[1743928377884,0.0003304,82757.0,82741.0,0.46818468]
[1743928378291,0.0003304,82757.0,82741.0,0.46318468]
[1743928378723,0.0003304,82757.0,82741.0,0.47843879]
[1743928378870,0.0003304,82757.0,82741.0,0.45818468]
[1743928379691,0.0003304,82757.0,82741.0,0.45318468]
[1743928380317,0.0003304,82757.0,82741.0,0.44818468]
[1743928381174,0.0003304,82757.0,82741.0,0.59822468]
[1743928381389,0.0003304,82757.0,82741.0,0.56087082]
[1743928381618,0.01,82755.0,82741.0,0.70015082]
[1743928381819,0.0003304,82757.0,82741.0,0.70015082]
[1743928385254,0.00974589,82756.0,82741.0,0.56087082]
[1743928385461,0.00974589,82756.0,82741.0,0.69991082]
[1743928386688,0.00974589,82756.0,82741.0,1.35219082]
[1743928388305,0.00974589,82756.0,82741.0,1.30459082]
[1743928389687,0.00974589,82756.0,82741.0,1.34190553]
[1743928390961,0.00974589,82756.0,82741.0,1.30459082]
[1743928391587,0.0003304,82757.0,82741.0,1.34191037]
[1743928392410,0.0003304,82757.0,82756.0,0.331255]
[1743928392744,0.0003304,82757.0,82756.0,0.7498778]
[1743928394132,0.0003304,82757.0,82756.0,0.7528778]
[1743928394332,0.0003304,82757.0,82756.0,0.7558778]
[1743928397883,0.0003304,82772.0,82771.0,0.331222]
[1743928398029,0.0003304,82772.0,82771.0,1.30684582]
[1743928399108,0.0003304,82772.0,82771.0,1.30990612]
[1743928399609,0.0197304,82779.0,82778.0,0.181207]
[1743928399814,0.0197304,82779.0,82778.0,0.32106641]
[1743928399975,0.0197304,82779.0,82778.0,0.31865082]
[1743928400848,0.0197304,82779.0,82778.0,0.32065082]
[1743928403499,0.0197304,82779.0,82778.0,0.31865082]
[1743928403708,0.0197304,82779.0,82778.0,0.32365082]
[1743928403927,0.0197304,82779.0,82778.0,0.32965082]
[1743928404589,0.0197304,82779.0,82778.0,0.46917082]
[1743928407897,0.00436995,82779.0,82778.0,0.51717082]
[1743928408550,0.00436995,82779.0,82778.0,0.37765082]
[1743928408766,0.00436995,82779.0,82778.0,0.51697082]
[1743928409874,0.00436995,82779.0,82778.0,0.55967082]
[1743928410107,0.00436995,82779.0,82778.0,0.56467082]
[1743928410494,0.00436995,82779.0,82778.0,0.55867082]
[1743928410897,0.00436995,82779.0,82778.0,0.56467082]
[1743928413428,0.00470035,82779.0,82778.0,0.56467082]
[1743928415629,0.00470035,82779.0,82778.0,0.55867082]
[1743928416723,0.00470035,82779.0,82778.0,0.55367082]
[1743928416875,0.00470035,82779.0,82778.0,0.55967082]
[1743928417584,0.00470035,82779.0,82778.0,0.56567082]
[1743928419815,0.00470035,82779.0,82778.0,1.21767082]
[1743928423099,0.00470035,82779.0,82778.0,1.16997082]
[1743928424517,0.00470035,82779.0,82778.0,1.20729062]
[1743928426666,0.00470035,82779.0,82778.0,1.15929062]
[1743928427868,0.00470035,82779.0,82778.0,1.15945582]
[1743928431754,0.00470035,82779.0,82778.0,1.30945582]
[1743928436819,0.00470035,82779.0,82778.0,1.30445582]
[1743928437163,0.00470035,82779.0,82778.0,1.16513582]
[1743928437342,0.00470035,82779.0,82778.0,1.30353582]
[1743928441866,0.00470035,82779.0,82778.0,1.29753582]
[1743928442249,0.00470035,82779.0,82778.0,1.30353582]
[1743928442446,0.00470035,82779.0,82778.0,1.29753582]
[1743928442586,0.00470035,82779.0,82778.0,1.29153582]
[1743928442792,0.00470035,82779.0,82778.0,1.29753582]
[1743928443011,0.00470035,82779.0,82778.0,1.30353582]
[1743928447686,0.0003304,82779.0,82778.0,1.30353582]
[1743928448924,0.0003304,82779.0,82778.0,1.16513582]
[1743928449215,0.0003304,82779.0,82778.0,1.30333582]
[1743928449445,0.0003304,82779.0,82778.0,1.41080339]
[1743928450880,0.0003304,82779.0,82778.0,1.27260339]
[1743928451078,0.0003304,82779.0,82778.0,1.41072339]
[1743928454603,0.0003304,82779.0,82778.0,1.30325582]
[1743928455569,0.0003304,82779.0,82778.0,1.16513582]
[1743928455844,0.0003304,82779.0,82778.0,1.30801582]
[1743928456098,0.0003304,82779.0,82778.0,1.30301582]
[1743928458037,0.0003304,82779.0,82778.0,1.30317582]
[1743928458715,0.0003304,82779.0,82778.0,0.98392882]
[1743928458954,0.0475304,82779.0,82778.0,1.12196882]
[1743928460052,0.0475304,82779.0,82778.0,1.08464902]
[1743928460280,0.0475304,82779.0,82778.0,1.12208563]
[1743928461159,0.0475304,82779.0,82778.0,0.98404563]
[1743928461377,0.0475304,82779.0,82778.0,1.12200563]
[1743928462429,0.05727629,82779.0,82778.0,1.12200563]
[1743928462662,0.05727629,82779.0,82778.0,1.08456902]
[1743928464712,0.01007629,82779.0,82778.0,1.08456902]
[1743928465615,0.01007629,82779.0,82778.0,1.07502817]
[1743928467516,0.01007629,82779.0,82778.0,1.08956902]
[1743928470794,0.01007629,82779.0,82778.0,1.10164902]
[1743928471232,0.01007629,82779.0,82778.0,1.13906248]
[1743928471690,0.01007629,82779.0,82778.0,1.00110248]
[1743928471903,0.01007629,82779.0,82778.0,1.13874248]
[1743928472365,0.0003304,82779.0,82778.0,1.13874248]
[1743928479621,0.01007629,82779.0,82778.0,1.13874248]
[1743928483390,0.01007629,82779.0,82778.0,1.13374248]
[1743928483980,0.0003304,82779.0,82778.0,1.18214248]
[1743928488266,0.0003304,82779.0,82778.0,1.28961005]
[1743928493227,0.0003304,82779.0,82778.0,1.18214248]
[1743928496879,0.00974589,82792.0,82791.0,0.331178]
[1743928497085,0.00974589,82799.0,82798.0,0.181163]
[1743928497282,0.0003302,82801.0,82800.0,0.331159]
[1743928497504,0.01007609,82801.0,82800.0,0.46860282]
[1743928497921,0.0003302,82801.0,82800.0,0.46860282]
[1743928498123,0.01007609,82801.0,82800.0,0.46860282]
[1743928498355,0.01053226,82801.0,82800.0,0.46860282]
[1743928498494,0.01053226,82801.0,82800.0,0.47060282]
[1743928499545,0.01053226,82801.0,82800.0,0.47260282]
[1743928501352,0.01053226,82801.0,82800.0,1.12452282]
[1743928501790,0.01053226,82801.0,82800.0,1.07964382]
[1743928503533,0.01053226,82801.0,82800.0,1.09172082]
[1743928503871,0.01053226,82801.0,82800.0,0.95544082]
[1743928504090,0.01053226,82801.0,82800.0,1.09160082]
[1743928504678,0.01053226,82801.0,82800.0,1.07952382]
[1743928506138,0.01053226,82801.0,82800.0,0.94336382]
[1743928506316,0.02260926,82801.0,82800.0,1.07948382]
[1743928506718,0.29260926,82801.0,82800.0,1.07948382]
[1743928506926,0.02260926,82801.0,82800.0,1.07948382]
[1743928509617,0.40980926,82801.0,82800.0,0.94336382]
[1743928509830,0.45560926,82801.0,82800.0,1.06486297]
[1743928510031,0.45560926,82801.0,82800.0,0.91486297]
[1743928510395,0.46060926,82801.0,82800.0,0.91486297]
[1743928511181,0.46060926,82801.0,82800.0,0.77882297]
[1743928511376,0.46060926,82801.0,82800.0,0.91498297]
[1743928512015,0.46060926,82801.0,82800.0,0.91502297]
[1743928519280,0.72060926,82801.0,82800.0,0.91502297]
[1743928519480,0.46060926,82801.0,82800.0,0.91502297]
[1743928521072,0.45560926,82801.0,82800.0,0.92956382]
[1743928522013,0.40840926,82801.0,82800.0,0.92956382]
[1743928522982,0.40840926,82801.0,82800.0,0.79336382]
[1743928523284,0.40840926,82801.0,82800.0,0.92944382]
[1743928528141,0.36260926,82801.0,82800.0,0.92944382]
[1743928531465,0.36260926,82801.0,82800.0,0.94498544]
[1743928531667,0.63260926,82801.0,82800.0,0.94498544]
[1743928531872,0.36260926,82801.0,82800.0,0.94498544]
[1743928547447,0.02260926,82801.0,82800.0,0.94498544]
[1743928555778,0.01053226,82801.0,82800.0,0.94498544]
[1743928556222,0.02260926,82801.0,82800.0,0.94498544]
[1743928556638,0.01053226,82801.0,82800.0,1.12614444]
[1743928557291,0.01053226,82801.0,82800.0,1.16360346]
[1743928557441,0.01053226,82801.0,82800.0,1.12614444]
[1743928557645,0.01053226,82801.0,82800.0,1.16359194]
[1743928558463,0.01053226,82801.0,82800.0,1.12614444]
[1743928559249,0.00078637,82801.0,82800.0,1.12614444]
[1743928559457,0.01053226,82801.0,82800.0,1.12614444]
[1743928560619,0.01053226,82801.0,82800.0,0.94498544]
[1743928560823,0.01053226,82801.0,82800.0,1.09498544]
[1743928561075,0.46190926,82801.0,82800.0,0.94436459]
[1743928561292,0.48690926,82801.0,82800.0,6.2e-07]
[1743928561519,0.19592589,82790.0,82789.0,0.1362052]
[1743928561744,0.58472589,82790.0,82789.0,0.25910817]
[1743928561966,0.58472589,82790.0,82789.0,0.26776022]
[1743928563335,0.58472589,82790.0,82789.0,0.26976022]
[1743928563578,0.58472589,82790.0,82789.0,0.27076022]
[1743928564987,0.58472589,82790.0,82789.0,0.13472022]
[1743928565198,0.58472589,82790.0,82789.0,0.27080022]
[1743928565417,0.58472589,82790.0,82789.0,0.13472022]
[1743928565604,0.58472589,82790.0,82789.0,0.27080022]
[1743928569160,0.82472589,82790.0,82789.0,0.27080022]
[1743928569346,0.58472589,82790.0,82789.0,0.27080022]
[1743928572591,0.58472589,82790.0,82789.0,0.13472022]
[1743928572910,0.58472589,82790.0,82789.0,0.27080022]